bitfinex/quotes_ETHUSD_20251006
["timestamp","ask_amount","ask_price","bid_price","bid_amount"]
[1759750101974,4.00309256,4584.9,4581.9,0.6336]
[1759750102264,0.78647111,4586.6,4582.0,0.35360571]
[1759750102265,0.65478665,4584.6,4582.0,0.35360571]
[1759750102568,2.18154846,4583.9,4583.8,0.1088]
[1759750102761,0.1088,4584.4,4583.8,0.1088]
[1759750102959,0.65475092,4585.1,4583.9,3.0336]
[1759750102960,0.4437,4584.6,4583.9,3.0336]
[1759750103268,9.28525054,4586.8,4583.9,3.0336]
[1759750103472,9.28525054,4586.8,4583.8,2.90911822]
[1759750103473,0.4437,4585.2,4584.1,0.6336]
[1759750103678,0.4437,4585.1,4582.7,2.4]
[1759750103857,4.00309256,4584.7,4582.8,0.39499683]
[1759750104158,2.1809395,4585.2,4582.8,0.39499683]
[1759750104159,0.4437,4584.6,4582.8,0.6336]
[1759750104375,2.18132362,4584.4,4583.2,0.6336]
[1759750104538,0.4437,4584.4,4583.2,0.6336]
[1759750104740,0.4437,4584.4,4582.1,0.60063673]
[1759750104741,0.4437,4584.4,4583.5,0.6336]
[1759750104938,0.4437,4584.4,4583.7,3.0336]
[1759750105868,0.4437,4584.4,4584.0,2.18149537]
[1759750106075,0.4437,4584.4,4584.0,2.467]
[1759750107356,0.4437,4584.4,4584.0,4.867]
[1759750107696,0.4437,4584.4,4584.0,2.467]
[1759750107832,0.4437,4584.9,4584.1,2.42181453]
[1759750108036,0.4437,4584.9,4584.1,2.2032657]
[1759750108268,0.4437,4584.9,4584.1,0.02181453]
[1759750108469,0.4437,4585.2,4584.4,3.0336]
[1759750108629,2.62464,4585.2,4584.5,4.867]
[1759750108831,0.4437,4585.2,4584.5,2.467]
[1759750109050,0.4437,4585.2,4584.5,4.867]
[1759750109336,0.4437,4585.1,4584.5,2.4]
[1759750109532,0.4437,4585.0,4584.5,2.4]
[1759750109730,0.4437,4584.9,4584.6,3.0336]
[1759750109966,0.4437,4584.8,4584.6,0.6336]
[1759750110157,0.4437,4584.7,4583.8,0.43983384]
[1759750110361,0.4437,4584.7,4583.4,0.3462]
[1759750110594,0.4437,4584.7,4584.0,0.6336]
[1759750110890,0.4437,4584.7,4584.1,2.466]
[1759750111045,0.4437,4584.7,4584.1,4.866]
[1759750111383,0.4437,4584.7,4584.2,2.466]
[1759750111896,0.4437,4584.6,4584.3,0.02181358]
[1759750112757,2.18096376,4585.2,4584.5,0.1088]
[1759750112948,0.4596,4584.9,4584.5,0.1088]
[1759750113147,0.4596,4584.8,4584.3,0.02181358]
[1759750113360,2.18097809,4585.1,4584.7,0.1088]
[1759750113875,0.4596,4585.0,4584.7,0.1088]
[1759750114474,0.454,4584.9,4584.7,0.1088]
[1759750114784,2.63507565,4584.9,4584.7,0.1088]
[1759750114985,2.63512022,4584.8,4584.7,0.1088]
[1759750115587,0.454,4584.8,4584.7,0.1088]
[1759750118786,0.454,4585.1,4584.7,0.1088]
[1759750118989,2.63504771,4585.0,4584.3,2.4]
[1759750119151,2.63504771,4585.0,4584.3,2.465]
[1759750119152,2.18108641,4584.9,4584.3,2.465]
[1759750119788,2.18107265,4584.9,4584.8,0.1088]
[1759750120080,2.63507265,4584.9,4584.8,0.1088]
[1759750120779,0.454,4584.9,4584.8,0.1088]
[1759750121084,2.18107265,4584.9,4584.8,0.1088]
[1759750121280,2.18097751,4585.1,4584.8,0.1088]
[1759750121466,2.18107265,4584.9,4584.8,0.1088]
[1759750121885,2.18092994,4585.2,4584.8,0.1088]
[1759750122087,2.18107265,4584.9,4584.8,0.1088]
[1759750122956,2.63507265,4584.9,4584.8,0.1088]
[1759750124482,0.454,4584.9,4584.8,0.1088]
[1759750124989,2.63507265,4584.9,4584.8,0.1088]
[1759750127970,2.18103765,4585.0,4584.8,0.1088]
[1759750128164,0.454,4584.9,4584.8,0.1088]
[1759750128408,0.454,4584.9,4584.3,2.464]
[1759750128409,2.1809693,4585.2,4584.5,0.6336]
[1759750128587,1e-08,4585.3,4584.8,0.1088]
[1759750128774,1e-08,4585.3,4585.1,0.1088]
[1759750128981,2.18089027,4585.3,4585.1,0.1088]
[1759750129510,0.454,4585.2,4585.1,0.1088]
[1759750130200,2.63492994,4585.2,4585.1,0.1088]
[1759750130399,2.83866175,4585.2,4585.1,0.1088]
[1759750130966,0.20373181,4585.2,4585.1,0.1088]
[1759750131578,0.65773181,4585.2,4585.1,0.1088]
[1759750131776,2.83866175,4585.2,4585.1,0.1088]
[1759750135987,2.18125059,4584.6,4584.1,3.55308845]
[1759750136285,2.18126589,4584.5,4584.1,3.61608845]
[1759750136499,2.463,4585.1,4584.5,0.1088]
[1759750136790,0.20424225,4585.0,4584.9,0.1088]
[1759750136992,2.18088264,4585.3,4584.9,0.1088]
[1759750137304,2.18091804,4585.3,4584.9,0.1088]
[1759750137507,2.18091804,4585.3,4585.2,0.1088]
[1759750138989,2.63491804,4585.3,4585.2,0.1088]
[1759750141532,2.18091804,4585.3,4585.2,0.1088]
[1759750142110,2.46200001,4585.3,4585.2,0.1088]
[1759750142313,4.64288239,4585.3,4585.2,0.1088]
[1759750142618,2.46200001,4585.3,4585.2,0.1088]
[1759750143917,1e-08,4585.3,4585.2,0.1088]
[1759750145423,0.4542,4586.4,4584.9,0.9806]
[1759750145620,0.4542,4586.4,4585.1,0.6336]
[1759750145621,2.18076328,4585.6,4585.1,0.6336]
[1759750145905,4.64255561,4586.0,4585.2,0.347]
[1759750146103,0.20428496,4585.9,4585.0,0.6336]
[1759750146303,0.4542,4586.4,4585.5,0.6336]
[1759750146504,2.6662138,4586.3,4585.5,0.6336]
[1759750146715,0.4542,4586.2,4585.3,3.0976]
[1759750146914,2.18061698,4585.9,4585.3,0.6336]
[1759750147232,2.462,4586.3,4585.6,2.18073244]
[1759750147401,2.462,4586.3,4585.5,1.78668845]
[1759750147402,2.464,4586.3,4585.5,1.78668845]
[1759750147603,2.464,4586.3,4585.6,2.4]
[1759750147811,2.464,4586.3,4585.5,4.18668845]
[1759750148016,2.18035951,4586.4,4585.5,1.78668845]
[1759750148418,2.18035951,4586.4,4585.6,2.52773224]
[1759750148740,0.4542,4586.5,4585.6,0.347]
[1759750148741,2.18047679,4586.2,4585.6,0.347]
[1759750148947,0.4542,4586.2,4585.5,1.15308845]
[1759750149138,2.18072821,4585.7,4585.3,1.15308845]
[1759750149333,2.63494773,4585.6,4585.3,1.15308845]
[1759750149640,2.464,4586.1,4584.7,3.0336]
[1759750149641,2.464,4586.1,4585.0,1.15308845]
[1759750149949,0.4542,4585.6,4585.0,1.15308845]
[1759750150147,0.4542,4585.5,4585.0,1.15308845]
[1759750150443,0.4542,4585.4,4585.0,1.15308845]
[1759750151426,0.4542,4585.8,4585.1,2.42180977]
[1759750151750,0.4542,4585.8,4585.1,0.02180977]
[1759750151916,2.18073161,4585.7,4585.1,0.02180977]
[1759750152113,0.4542,4586.0,4585.3,1.15308845]
[1759750152337,0.4542,4586.0,4585.4,0.6336]
[1759750152914,2.18040747,4586.3,4585.5,2.4]
[1759750153117,2.18042797,4586.3,4585.5,4.58078423]
[1759750153317,5.09960016,4586.4,4585.5,2.4]
[1759750153526,2.18043982,4586.3,4585.4,0.6336]
[1759750153749,2.18047546,4586.2,4585.4,0.6336]
[1759750153948,2.465,4586.4,4585.4,0.6336]
[1759750154152,7.10504202,4586.8,4585.8,0.6336]
[1759750154446,7.10504202,4586.8,4585.8,3.0336]
[1759750154652,2.18035746,4586.5,4585.8,0.6336]
[1759750154945,0.4542,4586.7,4585.8,0.6336]
[1759750155146,2.63442709,4586.7,4585.8,0.6336]
[1759750155364,2.18031178,4586.6,4585.8,0.6336]
[1759750155521,7.10504202,4586.8,4586.0,1.15308845]
[1759750155722,7.10504202,4586.8,4586.6,0.6336]
[1759750155922,7.10504202,4586.8,4586.7,5.4986]
[1759750156231,7.10504202,4586.8,4586.7,3.72485864]
[1759750156422,7.10504202,4586.8,4586.7,8.02307535]
[1759750156626,7.10504202,4586.8,4586.7,9.70418572]
[1759750156852,7.10504202,4586.8,4586.7,7.23918572]
[1759750157030,7.10504202,4586.8,4586.7,9.39041295]
[1759750157232,1e-08,4586.8,4586.7,7.37174587]
[1759750157542,1e-08,4586.8,4586.7,4.63894007]
[1759750157737,1e-08,4586.8,4586.7,7.10394007]
[1759750157942,1e-08,4586.8,4586.7,6.29193292]
[1759750158145,1e-08,4586.8,4586.7,6.32290384]
[1759750158453,0.45420001,4586.8,4586.7,2.84633292]
[1759750158633,2.63436919,4586.8,4586.7,2.84633292]
[1759750159434,2.63436919,4586.8,4586.7,2.4]
[1759750160163,1e-08,4586.8,4586.7,2.4]
[1759750160459,1e-08,4586.8,4586.7,2.64]
[1759750160643,1e-08,4586.8,4586.7,2.4]
[1759750160831,0.45420001,4586.8,4586.7,2.4]
[1759750162293,1e-08,4586.8,4586.7,2.4]
[1759750162573,1e-08,4586.8,4586.7,8.08461887]
[1759750162780,1e-08,4586.8,4586.7,8.06281671]
[1759750162997,1e-08,4586.8,4586.7,9.24609701]
[1759750163161,1e-08,4586.8,4586.7,10.4030918]
[1759750163348,2.4,4589.9,4588.0,0.6336]
[1759750163349,2.17887131,4589.6,4588.0,0.6336]
[1759750163685,4.62087191,4590.6,4588.4,2.4]
[1759750163686,0.45816174,4589.0,4588.4,2.4]
[1759750163859,0.45816174,4589.0,4588.5,0.02179361]
[1759750164186,0.00396174,4589.0,4588.3,0.6336]
[1759750164481,0.00396174,4589.0,4588.3,3.40627627]
[1759750164689,0.4542,4588.9,4588.3,2.508]
[1759750164886,0.4542,4588.9,4588.4,2.4]
[1759750165286,0.00396174,4589.0,4588.3,3.0336]
[1759750165448,0.4542,4588.8,4588.3,2.4]
[1759750165655,2.17931395,4588.6,4587.7,0.6336]
[1759750165876,0.4542,4588.5,4587.9,0.6336]
[1759750166065,0.4542,4588.5,4587.6,0.11169776]
[1759750166066,2.63356144,4588.5,4588.4,0.1088]
[1759750166488,0.4542,4588.5,4587.4,0.6336]
[1759750166692,0.4542,4588.4,4587.1,0.10819729]
[1759750166863,2.17960491,4588.0,4587.9,0.1088]
[1759750167067,2.17960491,4588.0,4586.5,2.6117723]
[1759750167068,0.4542,4588.0,4587.0,0.10794569]
[1759750167379,2.63384604,4588.0,4587.5,0.1088]
[1759750167563,0.4542,4587.9,4587.5,0.1088]
[1759750167769,0.4542,4587.8,4587.5,0.1088]
[1759750168105,2.17959895,4588.0,4587.5,0.1088]
[1759750168106,0.4542,4587.7,4587.5,0.1088]
[1759750168597,2.63398899,4587.6,4587.5,0.1088]
[1759750169104,0.4542,4587.6,4587.5,0.1088]
[1759750169862,0.4534,4587.9,4587.5,0.1088]
[1759750170062,2.63305044,4587.9,4587.5,0.1088]
[1759750170420,2.17969432,4587.8,4587.5,0.1088]
[1759750170585,4.7963251,4588.2,4587.5,0.1088]
[1759750170586,2.17974841,4587.7,4587.5,0.1088]
[1759750171184,2.508,4588.2,4587.6,0.1088]
[1759750171359,4.68545644,4588.3,4587.9,0.1088]
[1759750171565,2.17960089,4588.0,4587.9,0.1088]
[1759750171785,2.17950394,4588.2,4586.8,0.6336]
[1759750171786,2.1799049,4587.4,4586.8,0.6336]
[1759750171974,2.17950394,4588.2,4586.7,0.1069414]
[1759750171975,0.4542,4587.3,4586.7,0.1069414]
[1759750172296,0.4542,4587.3,4586.6,0.6336]
[1759750172479,0.4542,4587.9,4587.2,0.1088]
[1759750172672,2.17969397,4587.8,4587.2,0.1088]
[1759750172988,2.17972254,4587.8,4587.2,0.1088]
[1759750173191,2.1795124,4588.2,4587.0,0.6336]
[1759750173375,0.4578,4588.1,4587.7,0.1088]
[1759750173691,0.4578,4588.0,4587.7,0.1088]
[1759750173907,0.1088,4588.5,4587.7,0.1088]
[1759750174203,0.00396174,4589.0,4588.4,0.1088]
[1759750174409,0.46176174,4589.0,4588.5,0.65539361]
[1759750174609,0.4516,4588.9,4588.5,1.18307168]
[1759750174813,0.00396174,4589.0,4588.5,0.11830717]
[1759750174966,0.00396174,4589.0,4588.2,0.6336]
[1759750174967,0.4516,4588.8,4588.2,0.6336]
[1759750175169,2.63081896,4588.8,4588.7,0.1088]
[1759750175405,0.00396174,4589.0,4588.7,0.1088]
[1759750175606,0.45556174,4589.0,4588.7,0.1088]
[1759750175914,0.00396174,4589.0,4588.7,0.1088]
[1759750177431,0.4516,4588.9,4588.7,0.1088]
[1759750177606,0.00396174,4589.0,4588.7,0.1088]
[1759750179114,0.00396174,4589.0,4588.8,0.3478]
[1759750179293,0.00396174,4589.0,4588.9,2.17917147]
[1759750179495,0.00396174,4589.0,4588.9,2.20096318]
[1759750179703,0.00396174,4589.0,4588.8,0.26358575]
[1759750179926,0.00396174,4589.0,4588.7,0.1088]
[1759750180130,0.00396174,4589.0,4588.7,2.28804599]
[1759750180306,0.00396174,4589.0,4588.8,2.17919545]
[1759750180802,0.00396174,4589.0,4588.8,0.43065775]
[1759750181015,0.00396174,4589.0,4588.7,4.68805166]
[1759750181216,0.00396174,4589.0,4588.7,0.1088]
[1759750181596,0.4516,4588.9,4588.7,0.1088]
[1759750182003,0.00396174,4589.0,4588.7,0.1088]
[1759750182937,0.00396174,4589.0,4588.8,0.20051326]
[1759750183102,0.00396174,4589.0,4588.9,0.20051307]
[1759750183427,0.00396174,4589.0,4588.7,0.1088]
[1759750183831,0.00396174,4589.0,4588.9,0.1088]
[1759750184426,0.00396174,4589.0,4588.9,0.62134678]
[1759750184625,0.00396174,4589.0,4588.9,0.64313849]
[1759750184830,0.00396174,4589.0,4588.9,0.13059171]
[1759750184998,0.00396174,4589.0,4588.9,2.30976318]
[1759750185217,0.00396174,4589.0,4588.9,0.13059171]
[1759750185420,0.00396174,4589.0,4588.9,0.1088]
[1759750185623,0.00396174,4589.0,4588.9,2.5088]
[1759750185828,0.00396174,4589.0,4588.9,0.1088]
[1759750186029,0.00396174,4589.0,4588.9,2.28797147]
[1759750186208,0.00396174,4589.0,4588.9,4.68797147]
[1759750187136,0.00396174,4589.0,4588.9,2.5088]
[1759750187342,0.00396174,4589.0,4588.9,4.68797147]
[1759750188613,0.00396174,4589.0,4588.9,28.33863449]
[1759750188818,0.00396174,4589.0,4588.9,15.98544118]
[1759750189012,0.00396174,4589.0,4588.9,15.77144118]
[1759750189239,0.00396174,4589.0,4588.9,6.46624118]
[1759750189408,0.00396174,4589.0,4588.9,3.13046302]
[1759750189817,0.00396174,4589.0,4588.9,2.4]
[1759750190016,0.00396174,4589.0,4588.9,4.57917147]
[1759750190240,0.00396174,4589.0,4588.9,2.4]
[1759750190814,0.00396174,4589.0,4588.9,4.57917147]
[1759750191142,0.00396174,4589.0,4588.9,2.4]
[1759750191342,0.00396174,4589.0,4588.9,4.57917147]
[1759750191522,0.00396174,4589.0,4588.9,2.4]
[1759750191718,0.45556174,4589.0,4588.9,2.4]
[1759750191919,0.45556174,4589.0,4588.8,0.43735955]
[1759750192114,2.17917147,4588.9,4588.1,1.15660669]
[1759750192319,2.17926118,4588.8,4588.1,0.33362959]
[1759750192516,0.4516,4588.8,4588.1,0.33362959]
[1759750192751,0.4516,4588.8,4588.0,2.17958278]
[1759750193046,0.4516,4588.8,4587.9,2.4]
[1759750193047,0.4516,4588.8,4587.9,2.17964596]
[1759750193248,2.17932955,4588.6,4587.8,1.15660669]
[1759750193449,0.00396174,4589.0,4586.6,0.001]
[1759750193450,0.4516,4588.5,4587.5,1.15660669]
[1759750193615,0.4516,4588.5,4586.9,1.54996831]
[1759750193616,2.17945644,4588.3,4587.0,1.15660669]
[1759750193816,0.4516,4588.2,4587.3,2.17992872]
[1759750194041,2.63113835,4588.2,4587.2,2.4]
[1759750194245,2.63113835,4588.2,4587.1,0.64923913]
[1759750194623,2.63033835,4588.2,4587.3,2.17992949]
[1759750194951,2.63033835,4588.2,4587.4,0.02179884]
[1759750194952,0.4508,4588.2,4587.4,0.02179884]
[1759750195326,0.4508,4588.2,4587.4,0.20456331]
[1759750195524,2.17917147,4588.9,4587.6,2.17976552]
[1759750195824,2.17936781,4588.5,4587.5,2.1798222]
[1759750196020,0.00396174,4589.0,4587.6,2.20154928]
[1759750196339,2.17926861,4588.7,4587.6,2.42179788]
[1759750196648,2.63092724,4588.6,4587.7,2.17973951]
[1759750196955,0.4516,4588.6,4587.8,0.02179693]
[1759750197323,2.17937208,4588.5,4587.8,0.02179693]
[1759750197624,2.17937208,4588.5,4587.3,2.17992064]
[1759750197625,2.17945644,4588.3,4587.2,2.4]
[1759750197952,0.4516,4588.2,4587.5,2.17983319]
[1759750198247,0.00396174,4589.0,4587.3,0.02179931]
[1759750198248,2.9796,4588.7,4587.7,2.17974103]
[1759750198426,2.17932663,4588.6,4587.8,0.02179693]
[1759750198625,2.9796,4588.7,4587.9,2.17964646]
[1759750198626,2.528,4588.7,4587.9,2.17964646]
[1759750198953,2.528,4588.7,4587.8,0.02179693]
[1759750198954,2.528,4588.7,4588.1,2.1795287]
[1759750199259,2.528,4588.7,4588.6,0.1088]
[1759750199556,2.9796,4588.7,4588.6,0.1088]
[1759750200348,0.00396174,4589.0,4588.6,0.1088]
[1759750200739,0.00396174,4589.0,4588.9,2.17917147]
[1759750200929,0.00396174,4589.0,4588.9,5.34336318]
[1759750201128,0.00396174,4589.0,4588.9,5.67017147]
[1759750201330,0.00396174,4589.0,4588.9,3.1424]
[1759750201535,0.00396174,4589.0,4588.9,5.69196318]
[1759750201778,0.00396174,4589.0,4588.9,6.7666054]
[1759750202436,0.00396174,4589.0,4588.9,9.2946054]
[1759750202638,0.00396174,4589.0,4588.9,9.2936054]
[1759750202843,0.00396174,4589.0,4588.9,6.7666054]
[1759750203348,0.00396174,4589.0,4588.9,3.60523393]
[1759750203667,0.00396174,4589.0,4588.9,4.68797147]
[1759750204073,0.00396174,4589.0,4588.9,2.5088]
[1759750204286,0.00396174,4589.0,4588.9,4.68797147]
[1759750204486,0.00396174,4589.0,4588.9,2.5088]
[1759750204887,0.45006174,4589.0,4588.9,2.5088]
[1759750205279,2.62918573,4589.0,4588.9,0.1088]
[1759750205810,0.45006174,4589.0,4588.9,0.1088]
[1759750206111,0.45006174,4589.0,4587.8,0.001]
[1759750206112,0.00396174,4589.0,4588.4,1.15847921]
[1759750206259,0.00396174,4589.0,4588.6,2.17929786]
[1759750206459,0.00396174,4589.0,4588.5,0.36834792]
[1759750206758,0.00396174,4589.0,4588.6,2.17931031]
[1759750207389,0.00396174,4589.0,4588.7,2.1792268]
[1759750207693,0.00396174,4589.0,4588.9,2.17917147]
[1759750208106,0.00396174,4589.0,4588.8,2.4]
[1759750208259,0.00396174,4589.0,4588.9,2.17917147]
[1759750208453,0.00396174,4589.0,4588.9,4.52163499]
[1759750209081,0.45006174,4589.0,4588.9,2.4]
[1759750209659,0.00396174,4589.0,4588.9,2.4]
[1759750210559,0.00396174,4589.0,4588.9,4.57917147]
[1759750210964,0.00396174,4589.0,4588.9,7.10217147]
[1759750211604,0.00396174,4589.0,4588.9,4.57917147]
[1759750211818,0.00396174,4589.0,4588.9,7.95870848]
[1759750212488,0.00396174,4589.0,4588.9,3.25753701]
[1759750213084,0.00396174,4589.0,4588.9,2.4]
[1759750214706,0.00396174,4589.0,4588.9,4.57917147]
[1759750216189,0.00396174,4589.0,4588.9,4.68797147]
[1759750216485,0.00396174,4589.0,4588.9,2.5088]
[1759750216911,0.00396174,4589.0,4588.9,3.66720053]
[1759750217206,0.45006174,4589.0,4588.9,3.66720053]
[1759750217384,2.62918573,4589.0,4588.9,2.5088]
[1759750217790,0.45006174,4589.0,4588.9,2.5088]
[1759750218209,0.45006174,4589.0,4588.9,0.1088]
[1759750218424,0.00396174,4589.0,4588.9,0.1088]
[1759750218632,0.00396174,4589.0,4588.9,7.23176318]
[1759750218924,0.00316174,4589.0,4588.9,8.94312906]
[1759750219126,0.00316174,4589.0,4588.9,7.18157142]
[1759750219278,0.00316174,4589.0,4588.9,8.20272906]
[1759750219481,0.00316174,4589.0,4588.9,9.18492906]
[1759750219983,0.00316174,4589.0,4588.9,6.02855759]
[1759750220184,0.00316174,4589.0,4588.9,8.20772906]
[1759750220486,0.00316174,4589.0,4588.9,29.34132906]
[1759750220686,0.00316174,4589.0,4588.9,29.99558327]
[1759750221298,0.00316174,4589.0,4588.9,27.46658327]
[1759750221501,0.00316174,4589.0,4588.9,29.99458327]
[1759750222508,0.00316174,4589.0,4588.9,6.8114118]
[1759750222721,0.00316174,4589.0,4588.9,10.38285614]
[1759750223912,0.00316174,4589.0,4588.9,8.84032906]
[1759750224128,0.00316174,4589.0,4588.9,10.73145614]
[1759750224487,0.00316174,4589.0,4588.9,10.38285614]
[1759750224829,0.00316174,4589.0,4588.9,8.84032906]
[1759750224994,0.00316174,4589.0,4588.9,8.83832906]
[1759750226432,0.00316174,4589.0,4588.9,8.83732906]
[1759750226600,0.00316174,4589.0,4588.9,5.67872906]
[1759750226795,0.00316174,4589.0,4588.9,8.20372906]
[1759750228083,0.00316174,4589.0,4588.9,5.67872906]
[1759750228328,0.00316174,4589.0,4588.9,8.83732906]
[1759750228624,0.00316174,4589.0,4588.9,9.18592906]
[1759750228829,0.00316174,4589.0,4588.9,9.5051982]
[1759750229131,0.00316174,4589.0,4588.9,9.6139982]
[1759750231195,0.00316174,4589.0,4588.9,6.7403982]
[1759750231496,0.00316174,4589.0,4588.9,9.6129982]
[1759750231905,0.00316174,4589.0,4588.9,9.2643982]
[1759750232294,0.00316174,4589.0,4588.9,9.6129982]
[1759750232695,0.00511662,4591.0,4589.6,0.6336]
[1759750232916,0.00511662,4591.0,4590.7,2.17831703]
[1759750233119,0.00511662,4591.0,4590.9,5.21182213]
[1759750233326,0.65359548,4592.9,4590.9,5.21182213]
[1759750233327,0.65359548,4592.9,4592.0,2.81130034]
[1759750233509,0.4293,4593.4,4592.0,28.91705123]
[1759750233715,0.4293,4592.9,4592.0,12.62834304]
[1759750234019,50.0,4594.0,4592.0,7.10470034]
[1759750234020,0.4293,4592.8,4592.0,7.10470034]
[1759750234227,0.4293,4593.9,4592.1,22.67765292]
[1759750234421,0.4569,4592.8,4592.3,2.4]
[1759750234724,0.4569,4592.8,4592.3,4.57755808]
[1759750235107,0.4569,4593.5,4592.3,4.57755808]
[1759750235505,0.4569,4593.1,4592.3,2.17755808]
[1759750235806,0.4569,4593.1,4592.3,5.43160929]
[1759750236008,50.0,4594.0,4592.3,3.25405121]
[1759750236309,0.92676627,4592.4,4592.3,2.4]
[1759750236494,0.46986627,4592.4,4592.3,4.932]
[1759750236823,0.46986627,4592.4,4592.3,7.10955808]
[1759750237015,0.46986627,4592.4,4592.3,4.932]
[1759750237325,0.92676627,4592.4,4592.3,2.532]
[1759750237820,0.46986627,4592.4,4592.3,2.533]
[1759750238206,0.46986627,4592.4,4592.3,5.40406973]
[1759750238393,0.46986627,4592.4,4592.3,2.87106973]
[1759750238824,3.10428066,4592.4,4591.5,1.15171309]
[1759750239025,3.10428066,4592.4,4591.6,2.533]
[1759750239026,0.4569,4592.3,4591.6,2.533]
[1759750239350,0.46986627,4592.4,4591.8,2.17779402]
[1759750239553,0.46986627,4592.4,4591.9,2.534]
[1759750239840,0.46986627,4592.4,4592.1,2.17765292]
[1759750240003,0.46986627,4592.4,4592.3,2.17755808]
[1759750240200,0.46986627,4592.4,4592.2,7.11157956]
[1759750240425,0.46986627,4592.4,4592.3,2.17755808]
[1759750240736,0.46986627,4592.4,4592.3,2.4]
[1759750241136,0.46986627,4592.4,4592.3,4.935]
[1759750241336,0.46986627,4592.4,4592.3,7.11255808]
[1759750241504,0.46986627,4592.4,4592.3,4.935]
[1759750241914,0.92676627,4592.4,4592.3,2.4]
[1759750242113,0.92676627,4592.4,4592.3,0.24]
[1759750242312,0.92676627,4592.4,4592.3,2.534]
[1759750242544,0.46986627,4592.4,4592.3,4.71155808]
[1759750242718,0.46986627,4592.4,4592.3,2.6428]
[1759750243125,0.92676627,4592.4,4592.3,2.6428]
[1759750243448,0.46906627,4592.4,4592.3,2.6428]
[1759750243615,0.46906627,4592.4,4592.3,0.3752576]
[1759750243812,0.92596627,4592.4,4592.3,0.1088]
[1759750244442,3.10347693,4592.4,4592.3,0.1088]
[1759750245024,0.46906627,4592.4,4592.3,0.1088]
[1759750245249,0.46906627,4592.4,4592.3,2.6418]
[1759750245600,0.92596627,4592.4,4592.3,2.6418]
[1759750245724,0.92596627,4592.4,4592.3,0.1088]
[1759750246056,0.46906627,4592.4,4592.3,0.1088]
[1759750246257,0.46906627,4592.4,4592.3,1.9338]
[1759750246439,0.46906627,4592.4,4592.3,4.11135808]
[1759750246616,0.46906627,4592.4,4592.3,2.28635808]
[1759750246826,0.46906627,4592.4,4592.3,5.44726247]
[1759750247853,0.46906627,4592.4,4592.3,2.91526247]
[1759750248026,0.46906627,4592.4,4592.3,5.44726247]
[1759750248230,0.46906627,4592.4,4592.3,2.28635808]
[1759750248429,0.46906627,4592.4,4592.3,7.21735808]
[1759750250334,0.46906627,4592.4,4592.3,2.5088]
[1759750250531,0.92596627,4592.4,4592.3,2.5088]
[1759750250731,0.92596627,4592.4,4592.3,2.6408]
[1759750251152,0.92596627,4592.4,4592.3,0.1088]
[1759750251356,0.46906627,4592.4,4592.3,0.1088]
[1759750251554,0.92596627,4592.4,4592.3,2.6398]
[1759750251754,0.46906627,4592.4,4592.3,4.81735808]
[1759750251959,0.46906627,4592.4,4592.3,5.29909389]
[1759750252465,0.46906627,4592.4,4592.3,7.69909389]
[1759750253941,0.46906627,4592.4,4592.3,5.16809389]
[1759750254136,0.46906627,4592.4,4592.3,5.0398]
[1759750254676,0.46906627,4592.4,4592.3,0.1088]
[1759750254877,0.92596627,4592.4,4592.3,0.1088]
[1759750255569,3.10347693,4592.4,4592.3,0.1088]
[1759750255769,2.17762962,4592.2,4591.9,2.535]
[1759750255968,2.17762962,4592.2,4591.4,0.43147114]
[1759750255969,0.4569,4592.1,4590.8,1.15171309]
[1759750256176,0.46906627,4592.4,4590.9,0.11517131]
[1759750256377,0.46906627,4592.4,4592.2,0.1088]
[1759750256905,0.4569,4592.3,4592.2,0.1088]
[1759750257190,0.46906627,4592.4,4591.9,1.56]
[1759750257406,0.47106627,4592.4,4592.0,0.54629486]
[1759750257560,0.4569,4592.3,4591.1,1.15171309]
[1759750257762,0.4569,4592.2,4591.2,2.54]
[1759750257960,0.4569,4592.2,4591.5,2.17790002]
[1759750258198,0.47106627,4592.4,4591.6,0.0217789]
[1759750258500,0.47106627,4592.4,4591.8,2.4]
[1759750258696,0.47106627,4592.4,4591.7,1.15171309]
[1759750258919,0.47106627,4592.4,4591.6,2.4]
[1759750259080,0.47106627,4592.4,4591.9,2.17774777]
[1759750259404,0.4569,4592.3,4591.1,1.15171309]
[1759750259565,2.63450323,4592.3,4591.3,2.17802003]
[1759750259763,2.17765292,4592.1,4591.2,0.12668844]
[1759750259982,2.17774777,4591.9,4590.9,0.11517131]
[1759750260183,0.4569,4592.0,4591.0,0.02178174]
[1759750260357,0.4569,4592.0,4591.2,2.17807767]
[1759750260567,0.4569,4591.9,4591.3,0.02178032]
[1759750261000,0.4569,4591.9,4591.2,2.4]
[1759750261171,0.47106627,4592.4,4591.2,0.62068844]
[1759750261489,0.4569,4591.8,4591.3,2.54]
[1759750261792,0.4569,4591.7,4591.4,2.19972344]
[1759750261989,0.4569,4591.7,4591.4,0.02177984]
[1759750262592,0.4569,4591.6,4591.3,1.15171309]
[1759750262795,0.4624,4591.5,4591.1,1.15171309]
[1759750263087,0.4624,4591.5,4591.2,0.02178079]
[1759750263507,0.4624,4592.2,4591.4,1.15171309]
[1759750263791,0.47106627,4592.4,4591.2,0.02178079]
[1759750263792,0.47106627,4592.4,4591.8,2.17775573]
[1759750263978,0.47106627,4592.4,4591.9,0.02177747]
[1759750264186,0.93346627,4592.4,4591.9,0.02177747]
[1759750264407,0.4624,4592.3,4591.9,0.02177747]
[1759750265006,0.47106627,4592.4,4592.0,0.021777]
[1759750265305,0.47106627,4592.4,4592.1,2.17763796]
[1759750265510,0.47106627,4592.4,4592.2,0.02177605]
[1759750265884,0.47106627,4592.4,4592.2,2.19937165]
[1759750266110,0.47106627,4592.4,4592.1,3.32936018]
[1759750266310,0.47106627,4592.4,4592.3,2.17755808]
[1759750266609,0.47106627,4592.4,4592.2,0.33293602]
[1759750266791,0.93346627,4592.4,4592.3,1.15779093]
[1759750266987,0.93346627,4592.4,4591.4,0.6336]
[1759750266988,0.93346627,4592.4,4592.2,1.15779093]
[1759750267193,0.93346627,4592.4,4592.3,0.1088]
[1759750267514,2.64857693,4592.4,4592.3,0.1088]
[1759750267700,0.47106627,4592.4,4591.9,0.1088]
[1759750267906,2.17682755,4592.2,4591.9,0.1088]
[1759750268213,0.4624,4592.1,4591.3,1.15779093]
[1759750268512,0.4624,4592.1,4590.9,0.11517131]
[1759750268513,2.74890265,4592.0,4591.4,0.1088]